fUST/lending_fUST_20240923
["ID","MTS","AMOUNT","RATE_DAILY","PERIOD"]
[338922149,1727077746791,-250.0,0.0003144,2]
[338922150,1727077746812,-1274.677606,0.00031517,2]
[338922151,1727077746835,-250.0,0.00031524,2]
[338922152,1727077746858,-250.0,0.00031607,2]
[338922153,1727077746881,-250.0,0.00031691,2]
[338922154,1727077746903,-250.0,0.00031775,2]
[338922155,1727077746924,-250.0,0.00031858,2]
[338922156,1727077746947,-250.0,0.00031942,2]
[338922157,1727077746968,-1820.68,0.00032,100]
[338922158,1727077746990,-250.0,0.00032026,2]
[338922159,1727077747015,-250.0,0.0003211,2]
[338922160,1727077747042,-560.0,0.00032486,2]
[338922161,1727077747065,-1699.614138,0.000331,11]
[338922162,1727077747087,-560.0,0.00033161,2]
[338922163,1727077747109,-464.147021,0.00033165,2]
[338922164,1727077747130,-192.98824742,0.00033292,2]
[338922165,1727077747268,-188.839,0.00033384,35]
[338922166,1727077747295,-7139.2745635,0.00034145,2]
[338922167,1727077747317,-886.0585907,0.00034246,2]
[338922168,1727077747341,-406.64101991,0.00034346,7]
[338922169,1727077747365,-150.90289248,0.00034346,7]
[338922170,1727077751145,-349.09710752,0.00034346,7]
[338922171,1727077751168,-171.64214029,0.00034346,7]
[338922172,1727077751190,-500.0,0.00034346,7]
[338922173,1727077751211,-500.0,0.00034346,7]
[338922174,1727077751234,-500.0,0.00034346,7]
[338922175,1727077751256,-305.85858884,0.00034346,7]
[338922176,1727077761115,-194.14141116,0.00034346,7]
[338922177,1727077761140,-500.0,0.00034346,7]
[338922178,1727077761161,-500.0,0.00034346,7]
[338922179,1727077761182,-499.99999999,0.00034346,7]
[338922180,1727077761204,-15159.18714718,0.00034347,2]
[338922181,1727077761232,-9740.81285282,0.00034347,2]
[338922182,1727077761251,-493.86544875,0.00034373,5]
[338922216,1727077832402,-150.0,0.00033388,14]
[338922218,1727077832414,-150.0,0.00033388,14]
[338922221,1727077832426,-200.0,0.00033388,14]
[338922223,1727077832437,-900.0,0.00034876,10]
[338922225,1727077832448,-4814.76661992,0.0003538,2]
[338922233,1727077832511,-2600.0,0.0003538,2]
[338922291,1727077838550,-8909.84067416,0.0003538,2]
[338922292,1727077838563,-5049.6434236,0.0003538,2]
[338922293,1727077838658,-3525.74928232,0.0003538,2]
[338922295,1727077838668,-400.0,0.00035616,2]
[338922297,1727077838677,-230.554983,0.00035616,120]
[338922299,1727077838686,-900.0,0.00035698,10]
[338922301,1727077838696,-151.0,0.00036247,120]
[338922303,1727077838706,-900.0,0.0003652,10]
[338922304,1727077838716,-400.0,0.00036733,2]
[338922305,1727077838726,-621.95748073,0.00036734,120]
[338922306,1727077838735,-775.30126688,0.00037073,2]
[338922307,1727077838744,-151.0,0.00037147,15]
[338922308,1727077838754,-160.0,0.00037173,3]
[338922309,1727077838763,-900.0,0.00037342,10]
[338922310,1727077838772,-463.51579337,0.00037779,7]
[338922311,1727077838781,-3080.7930926,0.0003778,48]
[338922330,1727077840585,-30.53895777,0.0003778,48]
[338922343,1727077843585,-111.607518,0.0003778,48]
[338922344,1727077843628,-1006.0871943,0.0003778,48]
[338922345,1727077843638,-2297.38336185,0.000378,48]
[338922384,1727077846557,-44.20205694,0.00037763,2]
[338922385,1727077887107,192.98824742,0.00033288,2]
[338922408,1727078403265,500.0,0.0001,2]
[338922421,1727078736105,-274.94171,0.000273,120]
[338922422,1727078736126,-332.9848288,0.00027397,2]
[338922423,1727078754114,-122.6590922,0.00027397,2]
[338922424,1727078754135,-186.8918405,0.00029846,2]
[338922426,1727078834146,-53.9236788,0.00029846,2]
[338922427,1727078834167,-512.903546,0.00029877,2]
[338922428,1727078834187,-460.8997014,0.00029929,2]
[338922429,1727078834207,-300.0,0.00029999,2]
[338922430,1727078834227,-300.0,0.00029999,2]
[338922431,1727078834249,-7375.03767295,0.0003,10]
[338922433,1727078946182,-2317.08759305,0.0003,10]
[338922434,1727078946205,-250.0,0.00030036,2]
[338922435,1727078946227,-170.034731,0.00030096,2]
[338922436,1727078946250,-170.034731,0.00030179,2]
[338922437,1727078946272,-170.034731,0.00030261,2]
[338922438,1727078946295,-170.034731,0.00030344,2]
[338922439,1727078946438,-170.034731,0.00030426,2]
[338922440,1727078946461,-170.034731,0.00030509,2]
[338922441,1727078946483,-170.034731,0.00030591,2]
[338922442,1727078946505,-170.034731,0.00030674,2]
[338922443,1727078946527,-170.034731,0.00030757,2]
[338922444,1727078946549,-170.034731,0.00030839,2]
[338922445,1727078946573,-170.034731,0.00030922,2]
[338922446,1727078946596,-170.034731,0.00031004,2]
[338922447,1727078946617,-170.034731,0.00031087,2]
[338922448,1727078946641,-170.034731,0.00031169,2]
[338922449,1727078946665,-170.034731,0.00031252,2]
[338922450,1727078946693,-170.034731,0.00031334,2]
[338922451,1727078946715,-170.034731,0.00031417,2]
[338922452,1727078946738,-170.034731,0.000315,2]
[338922453,1727078946759,-400.0,0.00031581,2]
[338922454,1727078946781,-400.0,0.00031581,2]
[338922455,1727078946804,-170.034731,0.00031582,2]
[338922456,1727078946826,-170.034731,0.00031665,2]
[338922457,1727078946847,-455.643921,0.00033165,2]
[338922458,1727078946870,-560.0,0.00033982,2]
[338922459,1727078946894,-24900.0,0.00034515,2]
[338922460,1727078954109,-500.0,0.00034664,7]
[338922461,1727078954131,-496.46996114,0.00034664,7]
[338922462,1727078954154,-247.0,0.00034739,2]
[338922463,1727078954174,-166.4787176,0.00034766,2]
[338922464,1727078954195,-280.46094682,0.00035,120]
[338922465,1727078954217,-150.0,0.000352,2]
[338922466,1727078954238,-172.916237,0.00035616,120]
[338922467,1727078954259,-400.0,0.00035616,2]
[338922468,1727078970154,-500.0,0.00035972,10]
[338922469,1727078970182,-510.0,0.00036565,2]
[338922470,1727079002091,500.0,0.00035972,10]
[338922471,1727079026809,13762.0434443,0.00035138,2]
[338922472,1727079026831,1358.97573119,0.00035138,2]
[338922523,1727079038981,-34.39454808,0.00033388,14]
[338922524,1727079039146,-220.58545192,0.00033388,14]
[338922525,1727079039157,-779.72172576,0.00035138,2]
[338922548,1727079044392,-67.5473932,0.00035138,2]
[338922549,1727079044405,-377.2191834,0.00035138,2]
[338922553,1727079122665,500.0,0.00027397,2]
[338922554,1727079122855,500.0,0.00033165,2]
[338922564,1727080148176,-410.079529,0.00027397,2]
[338922565,1727080148198,-410.079529,0.00033165,2]
[338922566,1727080148222,-571.498993,0.00034878,2]
[338922567,1727080148244,-256.451773,0.00034985,2]
[338922568,1727080148265,-169.089722,0.00035047,2]
[338922569,1727080148286,-5904.7845018,0.00035394,2]
[338922570,1727080148307,-571.498993,0.00035562,2]
[338922571,1727080148328,-400.0,0.00035616,2]
[338922572,1727080148349,-172.916237,0.00035616,120]
[338922573,1727080148371,-180.201164,0.00035669,2]
[338922574,1727080148392,-500.0,0.00035972,10]
[338922575,1727080148414,-180.201164,0.00036134,2]
[338922576,1727080148434,-571.498993,0.00036247,2]
[338922577,1727080148456,-180.201164,0.00036598,2]
[338922578,1727080171551,500.0,0.00035972,10]
[338922579,1727080218330,180.201164,0.00035798,2]
[338922580,1727080228156,172.916237,0.00035616,120]
[338922603,1727080231707,-498.25893914,0.00036794,10]
[338922752,1727080238906,215.85310535,0.00025205,6]
[338922833,1727080243195,-1.74106086,0.00036794,10]
[338922834,1727080243204,-75.27223584,0.00037616,10]
[338922859,1727080254828,400.0,0.00035616,2]
[338922862,1727080288179,474.786958,0.00027397,2]
[338922863,1727080288390,474.786958,0.00033165,2]
[338922867,1727080604682,676.25696257,0.00025,60]
[338922891,1727080985423,350.0,0.00022,2]
[338922894,1727081232475,155.0,0.00022001,2]
[338922895,1727081243150,-8117.66294763,0.00025,60]
[338922896,1727081250111,-1206.0800898,0.00025,60]
[338922897,1727081250135,-491.06022209,0.00025,2]
[338922898,1727081345135,-8.93977791,0.00025,2]
[338922899,1727081345157,-620.00283467,0.00025462,2]
[338922900,1727081345179,-198.24347537,0.00027391,16]
[338922901,1727081345199,-225.767,0.00027391,16]
[338922902,1727081345223,-369.071576,0.00027397,2]
[338922903,1727081345243,-244.9281416,0.00032116,2]
[338922904,1727081345265,-180.201164,0.00032611,2]
[338922905,1727081345285,-169.089722,0.0003262,2]
[338922906,1727081345306,-4000.0,0.00033,30]
[338922907,1727081345326,-300.0,0.00033,30]
[338922908,1727081345346,-330.458384,0.00033034,2]
[338922909,1727081345366,-369.071576,0.00033165,2]
[338922910,1727081353147,-348.05949194,0.00034,30]
[338922911,1727081361130,-172.916237,0.00035616,120]
[338922912,1727081361153,-400.0,0.00035616,2]
[338922913,1727081361174,-300.0,0.00036,30]
[338922914,1727081361197,-300.0,0.00036,60]
[338922915,1727081361217,-1000.22,0.00036,60]
[338923156,1727081439894,-610.024,0.00036893,2]
[338923158,1727081439904,-153.946,0.00036893,2]
[338923160,1727081439913,-1105.6580201,0.00036893,2]
[338923165,1727081439948,-110.3419799,0.00036893,2]
[338923166,1727081439958,-214.117,0.00036893,2]
[338923167,1727081439967,-151.76,0.00036893,2]
[338923169,1727081439978,-150.0,0.00036893,2]
[338923170,1727081439987,-220.871,0.00036893,2]
[338923172,1727081439997,-500.0,0.00037068,10]
[338923173,1727081440006,-244.4538,0.00037574,2]
[338923175,1727081440016,-150.01,0.00037762,2]
[338923176,1727081440026,-2057.24308612,0.00037762,2]
[338923177,1727081440036,-288.74173451,0.000378,48]
[338923178,1727081440045,-3568.88,0.000378,48]
[338923179,1727081440055,-151.0,0.000378,14]
[338923180,1727081440065,-151.239614,0.000378,2]
[338923181,1727081440075,-151.0,0.000378,14]
[338923182,1727081440085,-151.0,0.000378,14]
[338923183,1727081440094,-151.0,0.000378,14]
[338923184,1727081440104,-151.0,0.000378,14]
[338923185,1727081440114,-151.0,0.000378,14]
[338923186,1727081440123,-398.915704,0.000378,14]
[338923187,1727081440137,-398.915704,0.000378,14]
[338923188,1727081440149,-151.0,0.000378,14]
[338923189,1727081440159,-191.67098674,0.0003789,2]
[338923190,1727081440169,-151.0,0.0003789,14]
[338923191,1727081440181,-192.936412,0.0003789,14]
[338923192,1727081440190,-500.0,0.0003789,10]
[338923193,1727081440200,-152.43480147,0.00037966,24]
[338923194,1727081440211,-191.67098674,0.00037979,2]
[338923195,1727081440221,-365.61,0.00037979,3]
[338923196,1727081440231,-151.0,0.0003798,14]
[338923197,1727081440240,-151.0,0.0003798,14]
[338923198,1727081440250,-151.0,0.0003798,14]
[338923199,1727081440259,-151.0,0.0003798,14]
[338923200,1727081440269,-151.257543,0.0003798,14]
[338923201,1727081440278,-151.0,0.0003798,14]
[338923202,1727081440288,-152.015532,0.0003798,14]
[338923203,1727081440298,-151.0,0.0003798,14]
[338923204,1727081440308,-151.0,0.0003798,14]
[338923205,1727081440318,-179.066831,0.0003798,14]
[338923206,1727081440328,-179.066831,0.0003798,14]
[338923207,1727081440337,-1409.4084,0.00037987,54]
[338923208,1727081440347,-153.10874965,0.00037988,15]
[338923209,1727081440356,-215.83357656,0.00037988,15]
[338923210,1727081440365,-450.77664939,0.00037988,15]
[338923211,1727081440374,-1367.97280181,0.00037988,21]
[338923212,1727081440384,-6072.02873342,0.00037988,21]
[338923213,1727081440395,-25127.2258398,0.00037989,5]
[338923214,1727081440404,-2327.8994525,0.00037989,5]
[338923215,1727081440413,-284276.46128164,0.00037989,7]
[338923221,1727081443082,-8267.18650305,0.00037989,7]
[338923242,1727081536558,151.0,0.0003,120]
[338923243,1727081537120,151.0,0.00033151,120]
[338923244,1727081537691,151.0,0.00036301,120]
[338923245,1727081540861,166.666666,0.00034922,2]
[338923252,1727081743817,170.21,0.00022001,2]
[338923266,1727082426147,-157.45388874,0.000272,60]
[338923267,1727082426168,-383.46626,0.000273,120]
[338923268,1727082426189,-371.950059,0.00027397,2]
[338923269,1727082426209,-1742.948229,0.0003016,2]
[338923270,1727082426246,-947.41808011,0.00030845,2]
[338923271,1727082433138,-755.73900455,0.00030845,2]
[338923272,1727082435104,-39.79114434,0.00030845,2]
[338923273,1727082435125,-165.229192,0.00030951,2]
[338923274,1727082435146,-1742.948229,0.00031529,2]
[338923275,1727082435167,-300.0,0.00033161,2]
[338923276,1727082435187,-300.0,0.00033162,2]
[338923277,1727082435207,-371.950059,0.00033165,2]
[338923278,1727082435230,-697.19,0.00033454,3]
[338923279,1727082435250,-467.39711878,0.00033454,3]
[338923281,1727082545125,-336.59353914,0.00033463,7]
[338923282,1727082545147,-500.0,0.00033463,7]
[338923283,1727082545176,-331.6087507,0.00033463,7]
[338923284,1727082545202,-500.0,0.00033463,7]
[338923285,1727082545225,-500.0,0.00033463,7]
[338923286,1727082545248,-500.0,0.00033463,7]
[338923287,1727082545270,-368.3802166,0.00033463,7]
[338923288,1727082545292,-500.0,0.00033463,7]
[338923289,1727082545313,-500.0,0.00033463,7]
[338923290,1727082545335,-500.0,0.00033463,7]
[338923291,1727082545356,-500.0,0.00033463,7]
[338923292,1727082545378,-500.0,0.00033463,7]
[338923293,1727082545400,-500.0,0.00033463,7]
[338923294,1727082545421,-500.0,0.00033463,7]
[338923295,1727082545443,-500.0,0.00033463,7]
[338923296,1727082545468,-333.0684312,0.00033463,7]
[338923297,1727082545491,-3036.01436671,0.00033464,21]
[338923298,1727082545513,-683.98640091,0.00033464,21]
[338923299,1727082545533,-1777.09686209,0.000335,14]
[338923300,1727082546267,-1168.40313791,0.000335,14]
[338923301,1727082546289,-6306.94,0.000335,14]
[338923302,1727082546309,-1657.22,0.000335,14]
[338923303,1727082546330,-180.91,0.000335,14]
[338923304,1727082546350,-187.54,0.000335,30]
[338923305,1727082546372,-166.250462,0.00034078,2]
[338923306,1727082546393,-24900.0,0.00034398,2]
[338923307,1727082546415,-400.0,0.00035616,2]
[338923308,1727082546437,-500.0,0.00035972,10]
[338923309,1727082546457,-150.0,0.00036,2]
[338923310,1727082552607,503.1,0.00033454,3]
[338923312,1727082562225,150.0,0.00036,2]
[338923313,1727082563757,419.25,0.00033454,3]
[338923314,1727082564323,13687.8275205,0.00030961,2]
[338923315,1727082569039,157.93,0.000335,14]
[338923316,1727082570915,1518.00718335,0.00033464,21]
[338923317,1727082571689,341.99320046,0.00033464,21]
[338923318,1727082574108,349.37,0.00033454,3]
[338923320,1727082585377,291.14,0.00033454,3]
[338923321,1727082596016,242.62,0.00033454,3]
[338923322,1727082596048,1441.28,0.000335,14]
[338923323,1727082596354,2561.69,0.000335,14]
[338923324,1727082596378,5635.46,0.000335,14]
[338923325,1727082606988,202.18,0.00033454,3]
[338923326,1727082607109,500.0,0.00035972,10]
[338923327,1727082611975,150.112233,0.000362,9]
[338923328,1727082612330,150.112233,0.000356,8]
[338923329,1727082612700,150.112233,0.000351,8]
[338923330,1727082613015,150.112233,0.000345,7]
[338923331,1727082613382,150.112233,0.00034,6]
[338923332,1727082613720,150.112233,0.000334,10]
[338923333,1727082614346,1000.0,0.00035616,45]
[338923334,1727082614632,1000.0,0.00035616,46]
[338923335,1727082614884,212.87359157,0.00035616,47]
[338923336,1727082631250,170.99660022,0.00033464,21]
[338923372,1727082632148,-2196.5795364,0.00033464,120]
[338923379,1727082632204,-6351.2,0.00033464,120]
[338923382,1727082632216,-1011.9081826,0.00033464,120]
[338923468,1727082633333,1663.17400126,0.00035438,20]
[338923469,1727082633393,424.31991166,0.00035792,20]
[338923470,1727082633923,168.49,0.00033454,3]
[338923501,1727082638290,-83.97100051,0.00033464,120]
[338923503,1727082638302,-7070.1297752,0.00033464,120]
[338923506,1727082638314,-108182.08542271,0.00033464,120]
[338923515,1727082638394,-226752.03620548,0.00033464,120]
[338923686,1727082640146,-649.08830633,0.00033464,120]
[338923693,1727082640203,-206709.7221684,0.00033464,120]
[338923933,1727082643206,-482.32874851,0.00033464,120]
[338924033,1727082644289,842.45,0.00033454,3]
[338924208,1727082646135,-589.00573751,0.00033464,120]
[338924376,1727082647789,457.166675,0.00027397,2]
[338924397,1727082647984,457.166675,0.00033165,2]
[338925568,1727082681059,165.2291922,0.00030961,2]
[338925570,1727082742587,500.0,0.00033463,7]
[338925580,1727083630150,-386.75675,0.00027397,2]
[338925581,1727083630173,-151.0,0.0003,120]
[338925582,1727083630200,-151.0,0.0003,120]
[338925583,1727083630222,-921.366883,0.00030653,2]
[338925584,1727083630244,-479.2669737,0.00030728,2]
[338925585,1727083630267,-161.695053,0.00030824,2]
[338925586,1727083630291,-161.695053,0.00030918,2]
[338925587,1727083630313,-161.695053,0.00031013,2]
[338925588,1727083630335,-91.22250876,0.00031107,2]
[338925589,1727083636110,-70.47254424,0.00031107,2]
[338925590,1727083636133,-138.37042868,0.00031202,2]
[338925591,1727083639119,-23.32462432,0.00031202,2]
[338925592,1727083639143,-161.695053,0.00031296,2]
[338925593,1727083639166,-921.366883,0.00031338,2]
[338925594,1727083639199,-161.695053,0.00031391,2]
[338925595,1727083639331,-161.695053,0.00031485,2]
[338925596,1727083639358,-161.695053,0.0003158,2]
[338925597,1727083639382,-161.695053,0.00031674,2]
[338925598,1727083639405,-161.695053,0.00031769,2]
[338925599,1727083639425,-255.6061,0.00031823,30]
[338925600,1727083639457,-161.695053,0.00031863,2]
[338925601,1727083639479,-161.695053,0.00031958,2]
[338925602,1727083639499,-921.366883,0.00032023,2]
[338925603,1727083639525,-161.695053,0.00032052,2]
[338925604,1727083639548,-161.695053,0.00032147,2]
[338925605,1727083639570,-151.0,0.00032219,120]
[338925606,1727083639593,-161.695053,0.00032241,2]
[338925607,1727083639617,-161.695053,0.00032336,2]
[338925608,1727083639639,-161.695053,0.0003243,2]
[338925609,1727083639660,-4000.0,0.00033,30]
[338925610,1727083639686,-386.75675,0.00033165,2]
[338925611,1727083639707,-150.0,0.00033319,2]
[338925612,1727083639727,-196.34670138,0.00033363,2]
[338925613,1727083639748,-180.614,0.00033434,35]
[338925614,1727083639773,-582.12612549,0.00033462,7]
[338925615,1727083639796,-500.0,0.00033462,7]
[338925616,1727083639819,-300.0,0.00033462,7]
[338925617,1727083639842,-500.0,0.00033462,7]
[338925618,1727083639867,-438.87006113,0.00033462,7]
[338925619,1727083639889,-1000.0,0.00033463,7]
[338925620,1727083639910,-1000.0,0.00033463,7]
[338925621,1727083639930,-1000.0,0.00033463,7]
[338925622,1727083639951,-204.81731376,0.00033463,7]
[338925624,1727083643113,-544.83994714,0.00033463,7]
[338925625,1727083643135,-160.0,0.00033463,10]
[338925626,1727083643158,-151.0,0.00033534,120]
[338925627,1727083643188,-151.0,0.00034438,120]
[338925628,1727083643212,-196.34670136,0.00034466,2]
[338925629,1727083643234,-196.34670136,0.00035569,2]
[338925630,1727083643256,-400.0,0.00035616,2]
[338925631,1727083643279,-307.4066575,0.00035616,120]
[338925632,1727083643302,-151.0,0.0003572,15]
[338925633,1727083643324,-6783.67756598,0.00035838,2]
[338925634,1727083643347,-700.0,0.00035972,10]
[338925635,1727083643368,-150.0,0.00036,2]
[338925636,1727083643390,-150.112233,0.000364,7]
[338925637,1727083643412,-5.0755904,0.00036658,120]
[338925640,1727083717251,970.85033995,0.0001992,120]
[338925641,1727083746440,-142458.48956999,0.00024,60]
[338925642,1727083749159,-10476.12696354,0.00024,60]
[338925643,1727083750179,-23660.53428721,0.00024,60]
[338925644,1727083754119,-9240.39266815,0.00024,60]
[338925645,1727083757134,-58818.48075616,0.00024,60]
[338925647,1727083762167,-82801.41282328,0.00024,60]
[338925648,1727083762188,-169.089722,0.00030687,2]
[338925649,1727083762209,-500.0,0.00033473,5]
[338925650,1727083762229,-1000.0,0.00034021,5]
[338925653,1727083768991,208.56563938,0.00030587,11]
[338925654,1727083800189,411.450008,0.00027397,2]
[338925655,1727083800395,411.450008,0.00033165,2]
[338925874,1727083840523,-23.20477477,0.00033463,120]
[338926516,1727083847059,-1645.76261316,0.00033463,120]
[338926545,1727083847325,-1116.31171075,0.00033463,120]
[338930563,1727083946437,196.34670136,0.00033351,2]
[338930566,1727084671931,359.44,0.00022,30]
[338930567,1727084758189,-730.3639461,0.00025,30]
[338930568,1727084758211,-319.02040309,0.00025757,2]
[338930569,1727084759108,-14301.32365401,0.00025757,2]
[338930570,1727084759131,-156.42594893,0.00026013,2]
[338930571,1727084759152,-5683.616111,0.00026113,2]
[338930572,1727084759173,-300.0,0.00026142,2]
[338930573,1727084759195,-300.0,0.00026142,2]
[338930574,1727084759216,-3000.0,0.00026143,2]
[338930575,1727084759237,-2440.1277069,0.00026211,2]
[338930576,1727084759260,-1169.210216,0.00026425,2]
[338930577,1727084759283,-250.0,0.00026522,2]
[338930578,1727084759305,-250.0,0.00026595,2]
[338930579,1727084759328,-250.0,0.00026667,2]
[338930580,1727084759350,-250.0,0.0002674,2]
[338930581,1727084759371,-5683.616111,0.00026798,2]
[338930582,1727084759394,-250.0,0.00026813,2]
[338930583,1727084759417,-250.0,0.00026886,2]
[338930584,1727084759439,-6637.1155345,0.00026936,2]
[338930585,1727084759461,-250.0,0.00026958,2]
[338930586,1727084759486,-250.0,0.00027031,2]
[338930587,1727084759510,-250.0,0.00027104,2]
[338930588,1727084759532,-240.8155193,0.00027125,2]
[338930589,1727084759556,-250.0,0.00027177,2]
[338930590,1727084759577,-250.0,0.00027249,2]
[338930591,1727084759598,-252.0299,0.000273,120]
[338930592,1727084759627,-250.0,0.00027322,2]
[338930593,1727084759658,-156.42594893,0.00027382,2]
[338930594,1727084759684,-250.0,0.00027395,2]
[338930595,1727084759713,-500.0,0.00027397,2]
[338930596,1727084759742,-250.0,0.00027468,2]
[338930597,1727084759773,-406.64101991,0.00027482,2]
[338930598,1727084759805,-500.0,0.00027482,2]
[338930599,1727084759836,-500.0,0.00027482,2]
[338930600,1727084759865,-500.0,0.00027482,2]
[338930601,1727084759894,-500.0,0.00027482,2]
[338930602,1727084759926,-500.0,0.00027482,2]
[338930603,1727084759954,-500.0,0.00027482,2]
[338930604,1727084759980,-500.0,0.00027482,2]
[338930605,1727084760011,-580.79819669,0.00027482,2]
[338930606,1727084760041,-500.0,0.00027482,2]
[338930607,1727084760071,-500.0,0.00027482,2]
[338930608,1727084760105,-500.0,0.00027482,2]
[338930609,1727084760136,-500.0,0.00027482,2]
[338930610,1727084760163,-500.0,0.00027482,2]
[338930611,1727084760189,-500.0,0.00027482,2]
[338930612,1727084760220,-500.0,0.00027482,2]
[338930613,1727084760252,-500.0,0.00027482,2]
[338930614,1727084760280,-500.0,0.00027482,2]
[338930615,1727084760309,-500.0,0.00027482,2]
[338930616,1727084760338,-500.0,0.00027482,2]
[338930617,1727084760364,-500.0,0.00027482,2]
[338930618,1727084760389,-5683.616111,0.00027483,2]
[338930619,1727084760416,-250.0,0.0002754,2]
[338930620,1727084760443,-250.0,0.00027613,2]
[338930621,1727084760471,-250.0,0.00027686,2]
[338930622,1727084760497,-250.0,0.00027759,2]
[338930623,1727084760525,-250.0,0.00027831,2]
[338930624,1727084760550,-191.0263064,0.00027853,2]
[338930625,1727084760576,-250.0,0.00027904,2]
[338930626,1727084760602,-420.0,0.00028288,2]
[338930627,1727084760627,-24900.0,0.00028393,2]
[338930628,1727084760652,-420.0,0.00028756,2]
[338930629,1727084760676,-168.539875,0.00028969,2]
[338930630,1727084760701,-200.0,0.00029066,15]
[338930631,1727084760725,-150.0,0.00029168,2]
[338930632,1727084760749,-460.8997014,0.00029243,2]
[338930633,1727084760773,-954.3080528,0.00029392,2]
[338930634,1727084760798,-151.0,0.0003,120]
[338930635,1727084760823,-151.0,0.0003,120]
[338930636,1727084760963,-587.0,0.00030609,2]
[338930637,1727084760985,-215.83,0.00030885,27]
[338930638,1727084761006,-493.86544875,0.00031417,5]
[338930639,1727084761026,-501.37144861,0.00031429,5]
[338930640,1727084761046,-587.0,0.00031632,2]
[338930641,1727084761067,-151.0,0.00031815,6]
[338930642,1727084761087,-151.0,0.00032219,120]
[338930643,1727084761107,-500.0,0.00032457,5]
[338930644,1727084761128,-500.0,0.00032648,5]
[338930645,1727084761149,-823.0,0.00033121,2]
[338930646,1727084761169,-151.0,0.00033127,7]
[338930647,1727084761189,-500.0,0.00033165,2]
[338930648,1727084761208,-219.07673951,0.000333,2]
[338930649,1727084761229,-192.98824742,0.00033351,2]
[338930650,1727084761249,-196.34670136,0.00033363,2]
[338930651,1727084761270,-1699.614138,0.000334,12]
[338930652,1727084761291,-545.46,0.00033453,3]
[338930653,1727084761312,-235.6154774,0.00033462,7]
[338930654,1727084761334,-407.48828784,0.00033462,7]
[338930655,1727084761354,-164.93083418,0.00033462,7]
[338930656,1727084761375,-252.0299,0.000337,120]
[338930657,1727084761395,-151.0,0.00033753,120]
[338930658,1727084761416,-151.0,0.00034438,15]
[338930659,1727084761437,-151.0,0.00034438,120]
[338930660,1727084761458,-823.0,0.00034795,2]
[338930661,1727084761482,-800.0,0.00034876,10]
[338930662,1727084761502,-4000.0,0.00035,30]
[338930663,1727084761525,-300.0,0.00035,60]
[338930664,1727084761546,-150.112264,0.000353,6]
[338930665,1727084761567,-600.0,0.00035308,120]
[338930666,1727084761588,-3758.91244397,0.00035482,2]
[338930667,1727084761609,-400.0,0.00035616,2]
[338930668,1727084761629,-172.916237,0.00035616,120]
[338930669,1727084761650,-800.0,0.00035698,10]
[338930670,1727084761670,-151.0,0.0003575,15]
[338930671,1727084761690,-150.112233,0.000358,10]
[338930672,1727084761710,-1152.0,0.00035839,2]
[338930673,1727084761730,-3758.91244398,0.0003589,2]
[338930674,1727084761754,-150.0,0.000362,2]
[338930675,1727084761774,-150.112233,0.000363,6]
[338930676,1727084761795,-800.0,0.0003652,10]
[338930677,1727084761816,-151.0,0.00036658,120]
[338930678,1727084761836,-500.0,0.00036673,5]
[338930679,1727084761860,-759.00359167,0.0003669,21]